fUSD/lending_fUSD_20240211
["ID","MTS","AMOUNT","RATE_DAILY","PERIOD"]
[313725101,1707617432570,-271.70958594,0.00022175,2]
[313725102,1707617432582,-294.64452919,0.00022175,2]
[313725122,1707617438124,-1304.58588487,0.00022175,2]
[313725123,1707617438134,-177.2,0.00022548,2]
[313725124,1707617438143,-226.83415691,0.00022548,2]
[313725125,1707617438153,-483.29730062,0.00022669,2]
[313725126,1707617438164,-18.34276955,0.00022669,2]
[313725127,1707617438174,-250.0,0.00022696,2]
[313725128,1707617438183,-155.15,0.0002275,2]
[313725129,1707617438193,-169.02730456,0.00022799,2]
[313725130,1707617438202,-150.0,0.00022799,2]
[313725131,1707617438211,-360.0675,0.000228,2]
[313725132,1707617438220,-229.49415255,0.000228,2]
[313725133,1707617438232,-2500.0,0.000228,2]
[313725134,1707617438243,-1484.42504745,0.000228,2]
[313725135,1707617438252,-727.59600505,0.000228,2]
[313725136,1707617438264,-740.64499495,0.000228,2]
[313725137,1707617438273,-691.36,0.00022827,2]
[313725138,1707617438282,-279.79715365,0.00022899,2]
[313725139,1707617438294,-1150.0,0.00022899,2]
[313725140,1707617438314,-474.01404635,0.00022899,2]
[313725141,1707617438323,-6803.38187221,0.00022899,2]
[313725142,1707617438335,-17291.65951167,0.00022899,2]
[313725143,1707617438354,-4224.5457729,0.00022899,2]
[313725144,1707617438375,-738.54219566,0.00022899,2]
[313725187,1707617438927,-747.66656873,0.00022899,2]
[313725189,1707617438936,-163.93191261,0.000229,2]
[313725191,1707617438948,-269.49698536,0.000229,2]
[313725193,1707617438959,-5568.82228803,0.000229,2]
[313725196,1707617438979,-49570.269614,0.000229,2]
[313725199,1707617438988,-1000.0,0.000229,2]
[313725200,1707617438998,-698.0902,0.000229,2]
[313725203,1707617439007,-42064.11061432,0.000229,2]
[313725205,1707617439017,-179.2039707,0.000229,2]
[313725207,1707617439030,-4687.51120619,0.000229,2]
[313725208,1707617439039,-1551.58,0.000229,2]
[313725211,1707617439049,-670.31,0.000229,2]
[313725213,1707617439058,-670.31,0.000229,2]
[313725215,1707617439067,-161.62745013,0.000229,2]
[313725217,1707617439076,-1255.20168378,0.000229,2]
[313725218,1707617439085,-197.22724275,0.0002299,2]
[313725221,1707617439095,-229.64833433,0.0002299,2]
[313725222,1707617439104,-197.22724275,0.0002299,2]
[313725224,1707617439115,-279.22300568,0.00022998,2]
[313725227,1707617439125,-643.03608297,0.00022998,2]
[313725229,1707617439135,-155.33093318,0.00022999,2]
[313725231,1707617439144,-227.31886165,0.00022999,2]
[313725232,1707617439153,-1946.37244436,0.00022999,2]
[313725258,1707617439411,-4254.69184258,0.00022999,2]
[313725259,1707617439422,-156.53684531,0.00022999,2]
[313725260,1707617439431,-443.93105001,0.00022999,2]
[313725261,1707617439441,-332.24169873,0.00022999,2]
[313725262,1707617439450,-164.24176097,0.00022999,2]
[313725263,1707617439459,-358.28049475,0.00022999,2]
[313725264,1707617439469,-462.29098981,0.00022999,2]
[313725265,1707617439478,-500.0,0.00022999,2]
[313725266,1707617439487,-500.0,0.00022999,2]
[313725267,1707617439496,-565.08495974,0.00022999,2]
[313725268,1707617439505,-150.0,0.00022999,2]
[313725269,1707617439526,-150.0,0.00022999,2]
[313725270,1707617439536,-150.0,0.00022999,2]
[313725271,1707617439545,-150.0,0.00022999,2]
[313725272,1707617439555,-150.0,0.00022999,2]
[313725273,1707617439564,-150.0,0.00022999,2]
[313725274,1707617439574,-150.0,0.00022999,2]
[313725275,1707617439583,-150.0,0.00022999,2]
[313725276,1707617439593,-150.0,0.00022999,2]
[313725277,1707617439602,-150.0,0.00022999,2]
[313725278,1707617439612,-501298.33698102,0.00023,2]
[313725279,1707617439621,-230.73415916,0.00023,3]
[313725280,1707617439632,-6081930.90170615,0.00023,2]
[313725281,1707617439642,-1343979.50053708,0.00023,2]
[313725282,1707617439651,-500.0,0.00023014,2]
[313725283,1707617439661,-155.15,0.00023046,2]
[313725284,1707617439671,-323.18,0.00023062,2]
[313725285,1707617439680,-177.2,0.00023096,2]
[313725286,1707617439690,-155.15,0.00023342,2]
[313725287,1707617439701,-2000.0,0.00023392,2]
[313725288,1707617439710,-155.15,0.00023639,2]
[313725289,1707617439719,-177.2,0.00023644,2]
[313725290,1707617439729,-151.98,0.00023817,2]
[313725291,1707617439738,-1870.94,0.00023819,2]
[313725292,1707617439748,-155.15,0.00023935,2]
[313725293,1707617439758,-519.86555174,0.00024,2]
[313725294,1707617439767,-203.20755972,0.00024,2]
[313725295,1707617439777,-238.18367575,0.00024192,2]
[313725296,1707617439786,-4687.51120618,0.00024255,2]
[313725297,1707617439796,-3183.27,0.00024384,2]
[313725298,1707617439806,-2743.81,0.00024384,2]
[313725299,1707617439815,-177.43,0.00024468,2]
[313725300,1707617439825,-3507.0,0.000246,2]
[313725301,1707617439835,-17385.0,0.000246,2]
[313725302,1707617439845,-1255.20168372,0.00024654,2]
[313725303,1707617439854,-250.0,0.00024658,2]
[313725304,1707617439864,-1000.0,0.00024921,2]
[313725305,1707617439874,-950.77284693,0.00025,2]
[313725306,1707617439884,-18759.14330784,0.00025,4]
[313725307,1707617439894,-1908.91510247,0.00025,2]
[313725308,1707617439904,-204.10628328,0.00025,2]
[313725309,1707617439913,-1598.79926135,0.00025,2]
[313725310,1707617439922,-1261.83544187,0.00025,2]
[313725311,1707617439932,-305.09660322,0.00025,2]
[313725312,1707617439942,-938.20137126,0.00025,2]
[313725313,1707617439952,-168.26749515,0.00025,2]
[313725314,1707617439961,-697.6684985,0.00025,2]
[313725315,1707617439971,-622.62871689,0.00025,2]
[313725316,1707617439981,-155.0,0.00025,2]
[313725317,1707617439991,-160.34918469,0.00025,2]
[313725318,1707617440002,-350.0,0.00025,3]
[313725319,1707617440012,-3000.0,0.00025,2]
[313725320,1707617440022,-3000.0,0.0002501,2]
[313725321,1707617440033,-3000.0,0.0002502,2]
[313725322,1707617440043,-3000.0,0.0002503,2]
[313725323,1707617440053,-3000.0,0.0002504,2]
[313725324,1707617440062,-3000.0,0.0002505,2]
[313725325,1707617440071,-3000.0,0.0002506,2]
[313725326,1707617440080,-3000.0,0.0002507,2]
[313725327,1707617440090,-210.0,0.00025079,2]
[313725328,1707617440101,-3000.0,0.0002508,2]
[313725329,1707617440112,-3000.0,0.0002509,2]
[313725330,1707617440122,-691.36,0.00025091,2]
[313725331,1707617440133,-3000.0,0.000251,2]
[313725332,1707617440143,-3000.0,0.0002511,2]
[313725333,1707617440153,-3000.0,0.0002512,2]
[313725334,1707617440162,-3000.0,0.0002513,2]
[313725335,1707617440172,-3000.0,0.0002514,2]
[313725336,1707617440181,-3000.0,0.0002515,2]
[313725337,1707617440191,-3000.0,0.0002516,2]
[313725338,1707617440201,-3000.0,0.0002517,2]
[313725339,1707617440214,-3356.128033,0.0002518,2]
[313725340,1707617440224,-1870.94,0.00025463,2]
[313725341,1707617440234,-156.22289243,0.00025577,2]
[313725342,1707617440244,-4687.51120618,0.00025609,2]
[313725343,1707617440253,-1255.20168372,0.00026409,3]
[313725344,1707617440264,-4687.51120618,0.00026964,2]
[313725345,1707617440274,-400.0,0.00027,3]
[313725346,1707617440285,-1870.94,0.00027107,2]
[313725347,1707617440295,-691.36,0.00027355,2]
[313725348,1707617440305,-155.0,0.00027397,2]
[313725349,1707617440315,-506.58,0.00027397,2]
[313725350,1707617440326,-1911.36148725,0.000274,2]
[313725351,1707617440336,-506.58,0.00027556,2]
[313725352,1707617440346,-162.0,0.00027586,2]
[313725353,1707617440355,-1000.0,0.0002769,2]
[313725354,1707617440365,-506.58,0.00027714,2]
[313725355,1707617440375,-506.58,0.00027872,2]
[313725356,1707617440386,-643.82355508,0.00028,2]
[313725357,1707617440397,-106113.24506528,0.00028,2]
[313725358,1707617440406,-195.03899719,0.00028,2]
[313725359,1707617440416,-506.58,0.0002803,2]
[313725360,1707617440425,-1255.20168372,0.00028163,4]
[313725361,1707617440435,-506.58,0.00028189,2]
[313725362,1707617440444,-4687.51120618,0.00028318,2]
[313725363,1707617440454,-506.58,0.00028347,2]
[313725364,1707617440463,-506.58,0.00028505,2]
[313725365,1707617440472,-453.0,0.00028519,2]
[313725366,1707617440482,-155.0,0.00028584,5]
[313725367,1707617440491,-506.58,0.00028664,2]
[313725368,1707617440501,-1870.94,0.0002875,2]
[313725369,1707617440511,-155.0,0.00028767,2]
[313725370,1707617440520,-506.58,0.00028822,2]
[313725371,1707617440530,-739.09271909,0.00029,15]
[313725372,1707617440540,-450.0,0.00029,3]
[313725373,1707617440549,-4276.336,0.00029001,2]
[313725374,1707617440561,-2303.771,0.00029001,2]
[313725375,1707617440570,-8195.444,0.00029001,2]
[313725376,1707617440580,-1048.64,0.00029001,2]
[313725377,1707617440590,-208.0,0.00029618,2]
[313725378,1707617440601,-691.36,0.00029619,2]
[313725379,1707617440611,-757.37,0.00029641,2]
[313725380,1707617440621,-177.43,0.0002966,2]
[313725381,1707617440632,-4687.51120618,0.00029673,2]
[313725382,1707617440642,-176.44955273,0.000298,2]
[313725383,1707617440651,-816.38,0.00029815,2]
[313725384,1707617440661,-1255.20168372,0.00029918,4]
[313725385,1707617440671,-820.93147686,0.0003,4]
[313725386,1707617440680,-369.81136266,0.0003,4]
[313725387,1707617440690,-906.62500448,0.0003,4]
[313725388,1707617440700,-1823.19018716,0.0003,4]
[313725389,1707617440709,-155.23361237,0.0003,4]
[313725390,1707617440719,-448.82644289,0.0003,4]
[313725391,1707617440728,-199.92195508,0.0003,4]
[313725392,1707617440738,-405.61194202,0.0003,4]
[313725393,1707617440751,-585.82753942,0.0003,2]
[313725394,1707617440761,-9690.3204777,0.0003,2]
[313725395,1707617440771,-155.0,0.0003,4]
[313725396,1707617440781,-644.56959363,0.0003,2]
[313725397,1707617440791,-19144.12786605,0.0003,4]
[313725398,1707617440801,-273.04691415,0.0003,5]
[313725399,1707617440810,-3000.0,0.0003,2]
[313725400,1707617440820,-205.0,0.0003,2]
[313725401,1707617440830,-375.78604145,0.0003,2]
[313725402,1707617440839,-154.33,0.0003,2]
[313725403,1707617440849,-150.0,0.00030137,2]
[313725404,1707617440858,-155.0,0.00030137,2]
[313725405,1707617440867,-1870.94,0.00030394,2]
[313725406,1707617440877,-1000.0,0.00030459,2]
[313725407,1707617440887,-150.0,0.00030714,2]
[313725408,1707617440897,-368.95110962,0.00031,4]
[313725409,1707617440907,-642.08889258,0.00031,7]
[313725410,1707617440916,-500.0,0.00031,3]
[313725411,1707617440926,-9000.0,0.00031,3]
[313725412,1707617440935,-2010.14,0.00031,2]
[313725413,1707617440945,-178.98,0.00031013,2]
[313725414,1707617440955,-4687.51120618,0.00031027,2]
[313725415,1707617440965,-757.37,0.00031123,2]
[313725416,1707617440974,-150.0,0.00031291,2]
[313725417,1707617440983,-303.701,0.00031297,7]
[313725418,1707617440993,-150.0,0.00031297,7]
[313725419,1707617441002,-1000.0,0.000315,2]
[313725420,1707617441011,-155.0,0.00031507,2]
[313725421,1707617441022,-208.0,0.00031517,5]
[313725422,1707617441033,-453.0,0.00031519,2]
[313725423,1707617441043,-151.0,0.00031519,120]
[313725424,1707617441052,-169.28,0.00031644,2]
[313725425,1707617441062,-180.0,0.00031644,2]
[313725426,1707617441072,-1255.20168372,0.00031672,5]
[313725427,1707617441081,-161.95127312,0.00031799,2]
[313725428,1707617441090,-193.60144476,0.00031799,2]
[313725429,1707617441100,-156.878285,0.000318,7]
[313725430,1707617441110,-382412.351208,0.000318,3]
[313725431,1707617441121,-151.0,0.000318,7]
[313725432,1707617441130,-270.211492,0.000318,7]
[313725433,1707617441140,-151.0,0.000318,7]
[313725434,1707617441150,-250.820285,0.000318,7]
[313725435,1707617441159,-990.902029,0.000318,7]
[313725436,1707617441170,-150.0,0.00031867,2]
[313725437,1707617441180,-691.36,0.00031883,2]
[313725438,1707617441190,-13156.97034701,0.00032,4]
[313725439,1707617441199,-151.0,0.00032162,30]
[313725440,1707617441209,-844.70260429,0.00032382,14]
[313725441,1707617441218,-150.0,0.00032382,2]
[313725442,1707617441228,-500.0,0.00032382,2]
[313725443,1707617441238,-500.0,0.00032382,2]
[313725444,1707617441249,-500.0,0.00032382,2]
[313725445,1707617441259,-4687.51120618,0.00032382,4]
[313725446,1707617441269,-389.26836263,0.00032397,2]
[313725447,1707617441278,-150.0,0.00032444,2]
[313725448,1707617441288,-150.0,0.00032501,2]
[313725449,1707617441298,-150.0,0.00032523,2]
[313725450,1707617441307,-150.0,0.00032562,2]
[313725451,1707617441317,-757.37,0.00032605,2]
[313725452,1707617441326,-2725.797693,0.00032645,2]
[313725453,1707617441336,-150.0,0.00032649,2]
[313725454,1707617441358,-150.0,0.0003268,2]
[313725455,1707617441375,-150.0,0.00032775,2]
[313725456,1707617441393,-151.0,0.00032818,7]
[313725457,1707617441406,-150.0,0.00032824,2]
[313725458,1707617441421,-150.0,0.00032839,2]
[313725459,1707617441436,-150.0,0.00032874,2]
[313725460,1707617441452,-1000.0,0.00032876,2]
[313725461,1707617441466,-1000.0,0.00032876,2]
[313725462,1707617441480,-1000.0,0.00032876,2]
[313725463,1707617441493,-1000.0,0.00032876,2]
[313725464,1707617441506,-1000.0,0.00032876,2]
[313725465,1707617441520,-1000.0,0.00032876,2]
[313725466,1707617441533,-1000.0,0.00032876,2]
[313725467,1707617441548,-1000.0,0.00032876,2]
[313725468,1707617441559,-1000.0,0.00032876,2]
[313725469,1707617441573,-1040.5878726,0.00032876,2]
[313725470,1707617441587,-500.0,0.00032876,2]
[313725471,1707617441604,-511.92690059,0.00032876,2]
[313725472,1707617441620,-150.0,0.00032877,30]
[313725473,1707617441633,-150.0,0.00032877,30]
[313725474,1707617441647,-150.0,0.00032877,30]
[313725475,1707617441661,-150.0,0.0003288,2]
[313725476,1707617441677,-178.46326879,0.00032884,2]
[313725477,1707617441692,-154.33,0.000329,2]
[313725478,1707617441705,-154.33,0.000329,2]
[313725479,1707617441716,-150.0,0.00032901,2]
[313725480,1707617441728,-150.0,0.00032903,2]
[313725481,1707617441741,-150.0,0.00032905,2]
[313725482,1707617441755,-150.0,0.0003291,2]
[313725483,1707617441771,-150.0,0.00032917,2]
[313725484,1707617441785,-150.0,0.00032929,2]
[313725485,1707617441796,-150.0,0.00032954,2]
[313725486,1707617441807,-1311.0,0.0003298,120]
[313725487,1707617441819,-166.33560026,0.00033,4]
[313725488,1707617441831,-675.78660902,0.00033,6]
[313725489,1707617441844,-288.37487269,0.00033,4]
[313725490,1707617441857,-16633.39361266,0.00033,3]
[313725491,1707617441872,-550.0,0.00033,3]
[313725492,1707617441896,-500.0,0.00033,2]
[313725493,1707617441910,-150.0,0.0003302,2]
[313725494,1707617441924,-150.0,0.00033021,2]
[313725495,1707617441940,-150.0,0.00033028,2]
[313725496,1707617441953,-150.0,0.00033072,2]
[313725497,1707617441965,-150.0,0.00033085,2]
[313725498,1707617441978,-150.0,0.00033091,2]
[313725499,1707617441990,-150.0,0.00033101,2]
[313725500,1707617442002,-150.0,0.00033114,2]
[313725501,1707617442016,-150.0,0.00033144,2]
[313725502,1707617442031,-150.0,0.0003317,2]
[313725503,1707617442044,-920.7,0.000332,2]
[313725504,1707617442058,-346.0,0.000332,2]
[313725505,1707617442072,-435.0,0.000332,2]
[313725506,1707617442084,-434.0,0.000332,2]
[313725507,1707617442096,-157.80304487,0.00033207,2]
[313725508,1707617442108,-1000.0,0.00033229,2]
[313725509,1707617442121,-150.0,0.0003323,2]
[313725510,1707617442134,-150.0,0.00033247,2]
[313725511,1707617442147,-150.0,0.00033251,2]
[313725512,1707617442159,-150.0,0.00033267,2]
[313725513,1707617442172,-230.53626124,0.00033315,2]
[313725514,1707617442184,-150.0,0.00033315,2]
[313725515,1707617442196,-150.0,0.00033325,2]
[313725516,1707617442208,-150.0,0.00033343,2]
[313725517,1707617442220,-150.0,0.00033374,2]
[313725518,1707617442231,-150.0,0.00033389,2]
[313725519,1707617442243,-150.0,0.00033391,2]
[313725520,1707617442255,-208.0,0.00033416,9]
[313725521,1707617442267,-150.0,0.00033421,2]
[313725522,1707617442279,-1255.20168372,0.00033427,6]
[313725523,1707617442291,-150.0,0.00033455,2]
[313725524,1707617442304,-151.0,0.00033488,4]
[313725525,1707617442316,-454.6,0.000335,2]
[313725526,1707617442327,-454.6,0.000335,2]
[313725527,1707617442339,-454.6,0.000335,2]
[313725528,1707617442351,-454.6,0.000335,2]
[313725529,1707617442364,-454.6,0.000335,2]
[313725530,1707617442376,-454.6,0.000335,2]
[313725531,1707617442388,-454.6,0.000335,2]
[313725532,1707617442400,-454.6,0.000335,2]
[313725533,1707617442413,-454.6,0.000335,2]
[313725534,1707617442425,-454.6,0.000335,2]
[313725535,1707617442438,-454.6,0.000335,2]
[313725536,1707617442450,-454.6,0.000335,2]
[313725537,1707617442462,-454.6,0.000335,2]
[313725538,1707617442474,-454.6,0.000335,2]
[313725539,1707617442486,-454.6,0.000335,2]
[313725540,1707617442499,-454.6,0.000335,2]
[313725541,1707617442513,-454.6,0.000335,2]
[313725542,1707617442525,-454.6,0.000335,2]
[313725543,1707617442536,-454.6,0.000335,2]
[313725544,1707617442549,-454.6,0.000335,2]
[313725545,1707617442560,-150.0,0.00033507,2]
[313725546,1707617442572,-150.0,0.00033512,2]
[313725547,1707617442586,-150.0,0.00033533,2]
[313725548,1707617442597,-150.0,0.0003356,2]
[313725549,1707617442609,-150.0,0.00033565,2]
[313725550,1707617442621,-150.0,0.00033598,2]
[313725551,1707617442634,-150.0,0.00033633,2]
[313725552,1707617442646,-150.0,0.00033654,2]
[313725553,1707617442658,-150.0,0.00033724,2]
[313725554,1707617442669,-151.58055429,0.00033725,2]
[313725555,1707617442681,-150.0,0.00033732,2]
[313725556,1707617442693,-4687.51120618,0.00033736,5]
[313725557,1707617442705,-150.0,0.00033743,2]
[313725558,1707617442716,-772.78127168,0.00033746,2]
[313725559,1707617442728,-150.0,0.00033758,2]
[313725560,1707617442740,-211.46083914,0.0003376,2]
[313725561,1707617442751,-596.53470216,0.0003377,2]
[313725562,1707617442763,-150.0,0.0003378,2]
[313725563,1707617442775,-150.0,0.00033806,2]
[313725564,1707617442787,-512.92259,0.0003381,2]
[313725565,1707617442799,-150.0,0.00033831,2]
[313725567,1707617442810,-150.0,0.00033856,2]
[313725568,1707617442823,-150.0,0.00033881,2]
[313725569,1707617442834,-150.0,0.00033884,2]
[313725570,1707617442847,-150.0,0.00033885,2]
[313725571,1707617442859,-150.0,0.0003389,2]
[313725572,1707617442872,-158.31571901,0.000339,2]
[313725573,1707617442887,-158.315719,0.000339,2]
[313725574,1707617442900,-150.0,0.00033928,2]
[313725575,1707617442913,-150.0,0.00033933,2]
[313725576,1707617442925,-150.0,0.00033933,2]
[313725577,1707617442938,-150.0,0.00033975,2]
[313725578,1707617442951,-1311.0,0.0003398,120]
[313725579,1707617442965,-239.13,0.0003399,10]
[313725580,1707617442978,-199.27,0.0003399,10]
[313725581,1707617442991,-166.06,0.0003399,10]
[313725582,1707617443004,-767.32331922,0.00034,4]
[313725584,1707617443020,-362.77335769,0.00034,36]
[313725585,1707617443033,-1000.0,0.00034,2]
[313725586,1707617443044,-4000.0,0.00034,2]
[313725588,1707617443057,-150.0,0.00034002,2]
[313725590,1707617443070,-150.0,0.00034002,2]
[313725591,1707617443082,-150.0,0.00034025,2]
[313725592,1707617443094,-150.0,0.00034032,2]
[313725593,1707617443105,-154.4692,0.00034046,2]
[313725594,1707617443118,-200.0,0.00034052,3]
[313725595,1707617443129,-202.259037,0.00034052,5]
[313725596,1707617443142,-150.0,0.00034054,2]
[313725597,1707617443154,-150.0,0.0003406,2]
[313725598,1707617443167,-757.37,0.00034087,2]
[313725599,1707617443178,-158.315719,0.0003409,2]
[313725600,1707617443189,-512.92258,0.00034101,2]
[313725601,1707617443202,-155.06017714,0.00034102,2]
[313725602,1707617443214,-158.28655489,0.00034102,4]
[313725603,1707617443225,-992.81037315,0.00034102,2]
[313725604,1707617443237,-3503.41485519,0.00034102,4]
[313725605,1707617443249,-2820.30472641,0.00034102,2]
[313725606,1707617443260,-200.0,0.00034102,2]
[313725607,1707617443272,-155.0,0.00034102,4]
[313725608,1707617443284,-6539.08069997,0.00034102,4]
[313725609,1707617443296,-8066.51192583,0.00034102,2]
[313725610,1707617443309,-687.85644639,0.00034102,4]
[313725611,1707617443321,-200.0,0.00034102,2]
[313725612,1707617443334,-512.92259,0.0003412,2]
[313725613,1707617443345,-150.0,0.00034124,2]
[313725614,1707617443357,-152.82808744,0.00034145,2]
[313725615,1707617443370,-691.36,0.00034147,2]
[313725616,1707617443386,-150.0,0.00034147,2]
[313725617,1707617443399,-150.0,0.00034151,2]
[313725618,1707617443412,-150.0,0.00034153,2]
[313725619,1707617443425,-150.0,0.00034155,2]
[313725620,1707617443437,-800.0,0.00034165,2]
[313725621,1707617443449,-150.0,0.00034171,2]
[313725622,1707617443462,-151.0,0.00034171,2]
[313725623,1707617443476,-150.0,0.00034175,2]
[313725624,1707617443487,-150.0,0.00034177,2]
[313725625,1707617443500,-150.0,0.00034191,2]
[313725626,1707617443512,-150.0,0.00034196,2]
[313725627,1707617443524,-1000.0,0.000342,2]
[313725629,1707617443537,-150.0,0.00034202,2]
[313725630,1707617443550,-800.0,0.00034213,2]
[313725631,1707617443561,-150.0,0.00034214,2]
[313725632,1707617443571,-150.0,0.00034227,2]
[313725633,1707617443581,-150.0,0.00034235,2]
[313725634,1707617443590,-160.0,0.00034244,2]
[313725635,1707617443599,-150.0,0.00034244,2]
[313725636,1707617443608,-150.0,0.00034264,2]
[313725637,1707617443617,-150.0,0.00034268,2]
[313725638,1707617443626,-150.0,0.0003427,2]
[313725639,1707617443639,-101509.14717771,0.000343,2]
[313725640,1707617443649,-150.0,0.00034303,2]
[313725641,1707617443658,-150.0,0.00034307,2]
[313725642,1707617443667,-150.0,0.00034354,2]
[313725643,1707617443677,-150.0,0.00034371,2]
[313725644,1707617443687,-519.135967,0.000344,12]
[313725645,1707617443696,-3000.0,0.000344,12]
[313725646,1707617444060,-724.14,0.000344,2]
[313725647,1707617444094,-3000.0,0.0003441,12]
[313725648,1707617444119,-150.0,0.00034415,2]
[313725649,1707617444130,-150.0,0.00034419,2]
[313725650,1707617444141,-5471.225606,0.0003442,12]
[313725651,1707617444151,-512.92258,0.0003443,2]
[313725652,1707617444160,-331.15333119,0.00034445,2]
[313725653,1707617444170,-204.78405158,0.00034446,4]
[313725654,1707617444179,-125968.36336222,0.00034446,4]
[313725655,1707617444188,-216.39403357,0.00034447,4]
[313725656,1707617444197,-150.0,0.00034447,2]
[313725657,1707617444206,-166.13883622,0.00034448,2]
[313725658,1707617444216,-1228.82643898,0.00034448,4]
[313725659,1707617444225,-1126.28988021,0.00034448,4]
[313725660,1707617444235,-502.09713453,0.00034449,4]
[313725661,1707617444244,-150.0,0.00034457,2]
[313725662,1707617444254,-155.55301279,0.00034458,7]
[313725663,1707617444263,-532.4365458,0.00034459,2]
[313725664,1707617444273,-150.0,0.00034459,30]
[313725665,1707617444282,-150.0,0.00034459,30]
[313725666,1707617444291,-95014.78605381,0.0003446,10]
[313725667,1707617444300,-6264.0392637,0.0003446,10]
[313725668,1707617444309,-110564.7359598,0.0003446,10]
[313725669,1707617444318,-18916.26294809,0.0003446,10]
[313725670,1707617444327,-33898.03814096,0.0003446,10]
[313725671,1707617444336,-155.755315,0.0003446,7]
[313725672,1707617444346,-15544.31015615,0.0003446,2]
[313725673,1707617444355,-233.929643,0.0003446,7]
[313725674,1707617444364,-151.0,0.0003446,7]
[313725675,1707617444373,-990.902029,0.0003446,7]
[313725676,1707617444383,-150.0,0.00034482,2]
[313725677,1707617444393,-150.01,0.00034489,2]
[313725678,1707617444402,-3312.93754323,0.00034489,2]
[313725679,1707617444411,-188825.95348347,0.0003449,10]
[313725680,1707617444420,-2835.7865553,0.00034495,2]
[313725681,1707617444429,-2648.4070925,0.00034495,2]
[313725682,1707617444438,-40505.1362586,0.00034495,2]
[313725683,1707617444447,-453.0,0.00034519,2]
[313725684,1707617444456,-10000.0,0.00034521,2]
[313725685,1707617444465,-512.92259,0.0003474,2]
[313725686,1707617444474,-150.0,0.00034751,2]
[313725687,1707617444483,-9013.93953825,0.000349,4]
[313725688,1707617444492,-2466.20660072,0.000349,2]
[313725689,1707617444501,-2466.2066006,0.000349,2]
[313725690,1707617444510,-2466.2066006,0.000349,2]
[313725691,1707617444519,-2466.2066006,0.000349,2]
[313725692,1707617444528,-2466.2066006,0.000349,2]
[313725693,1707617444537,-2466.2066006,0.000349,2]
[313725694,1707617444546,-2466.2066006,0.000349,2]
[313725695,1707617444555,-2466.2066006,0.000349,2]
[313725696,1707617444565,-1311.0,0.0003498,120]
[313725697,1707617444575,-180.89168206,0.00035,4]
[313725698,1707617444584,-1457.18202735,0.00035,5]
[313725699,1707617444593,-450.84278538,0.00035,4]
[313725700,1707617444602,-155.0,0.00035,2]
[313725701,1707617444611,-15836.26716649,0.00035,7]
[313725702,1707617444620,-40317.18644522,0.00035,4]
[313725703,1707617444630,-500.0,0.00035,2]
[313725704,1707617444640,-826.18271411,0.00035,5]
[313725705,1707617444649,-600.0,0.00035,3]
[313725706,1707617444660,-16352.9737734,0.00035,2]
[313725707,1707617444669,-16352.9737734,0.00035,2]
[313725708,1707617444678,-300.0,0.00035,36]
[313725709,1707617444686,-20000.0,0.00035,2]
[313725710,1707617444695,-165.0,0.00035,2]
[313725711,1707617444704,-1792.69,0.00035029,5]
[313725712,1707617444713,-512.92259,0.0003506,2]
[313725713,1707617444722,-17310.69899885,0.0003509,2]
[313725714,1707617444731,-4687.51120618,0.00035091,7]